[Event "*** Titled Tuesday Blitz"]
[Site "Chess.com"]
[Date "2019.12.03"]
[Round "6"]
[White "Jenia84"]
[Black "Egorov_Pavel"]
[Result "0-1"]
[WhiteElo "2202"]
[BlackElo "2375"]
[TimeControl "180+2"]
[EndTime "14:23:56 PST"]
[Termination "Egorov_Pavel won by resignation"]

1. e4 {[%clk 0:03:01.9]} 1... Nf6 {[%clk 0:03:01.1]} 2. e5 {[%clk 0:03:02.3]}
2... Nd5 {[%clk 0:03:02.4]} 3. d4 {[%clk 0:03:03.7]} 3... d6 {[%clk 0:03:03]} 4.
Nf3 {[%clk 0:03:04.4]} 4... Nc6 {[%clk 0:03:04.1]} 5. c4 {[%clk 0:03:03.3]} 5...
Nb6 {[%clk 0:03:05.6]} 6. exd6 {[%clk 0:03:04.4]} 6... cxd6 {[%clk 0:03:07.5]}
7. Nc3 {[%clk 0:03:05.5]} 7... g6 {[%clk 0:03:08.3]} 8. Be3 {[%clk 0:03:03.5]}
8... Bg7 {[%clk 0:03:09.5]} 9. Be2 {[%clk 0:02:59.5]} 9... Bg4 {[%clk
0:03:10.5]} 10. c5 {[%clk 0:02:42.6]} 10... Bxf3 {[%clk 0:02:56.1]} 11. Bxf3
{[%clk 0:02:34.8]} 11... Nc4 {[%clk 0:02:56.1]} 12. Qa4 {[%clk 0:02:24.8]} 12...
Nxe3 {[%clk 0:02:21.1]} 13. fxe3 {[%clk 0:02:24.8]} 13... O-O {[%clk 0:02:16.6]}
14. O-O {[%clk 0:02:17.9]} 14... dxc5 {[%clk 0:02:16.7]} 15. dxc5 {[%clk
0:02:14.5]} 15... Qd2 {[%clk 0:02:12.2]} 16. Bxc6 {[%clk 0:02:07.4]} 16... bxc6
{[%clk 0:02:07.9]} 17. Qxc6 {[%clk 0:02:07.6]} 17... Qxe3+ {[%clk 0:02:04.8]}
18. Kh1 {[%clk 0:02:07.9]} 18... Rac8 {[%clk 0:02:05.6]} 19. Qd7 {[%clk
0:02:03.4]} 19... Bxc3 {[%clk 0:01:55.5]} 20. bxc3 {[%clk 0:02:03.7]} 20... Qxc5
{[%clk 0:01:57.1]} 21. Rab1 {[%clk 0:02:03.7]} 21... Rc7 {[%clk 0:01:53.7]} 22.
Qa4 {[%clk 0:01:50.2]} 22... Qxc3 {[%clk 0:01:53.6]} 23. h4 {[%clk 0:01:51.1]}
23... Qc4 {[%clk 0:01:45.6]} 24. Qxc4 {[%clk 0:01:50.3]} 24... Rxc4 {[%clk
0:01:47.5]} 25. g3 {[%clk 0:01:48.7]} 25... Ra4 {[%clk 0:01:38.1]} 26. Rf2
{[%clk 0:01:48.1]} 26... Rd8 {[%clk 0:01:33.4]} 27. Rb7 {[%clk 0:01:47.6]} 27...
Rd1+ {[%clk 0:01:34.5]} 28. Kh2 {[%clk 0:01:44.1]} 28... Re1 {[%clk 0:01:35.8]}
29. Rc2 {[%clk 0:01:30.8]} 29... h5 {[%clk 0:01:30.5]} 30. Kh3 {[%clk
0:01:25.4]} 30... Ra3 {[%clk 0:01:28.6]} 31. Kh2 {[%clk 0:01:22.8]} 31... Ree3
{[%clk 0:01:27.4]} 32. Rg2 {[%clk 0:01:21.1]} 32... a5 {[%clk 0:01:25]} 33. Ra7
{[%clk 0:01:20.7]} 33... Kf8 {[%clk 0:01:14.5]} 34. Ra8+ {[%clk 0:01:18.6]}
34... Kg7 {[%clk 0:01:15.6]} 35. Ra7 {[%clk 0:01:19.7]} 35... e5 {[%clk
0:01:12.5]} 36. Rf2 {[%clk 0:01:18.4]} 36... Rf3 {[%clk 0:01:13.9]} 37. Rxf3
{[%clk 0:01:09.3]} 37... Rxf3 {[%clk 0:01:15.8]} 38. Rxa5 {[%clk 0:01:10.2]}
38... e4 {[%clk 0:01:12.8]} 39. Kg2 {[%clk 0:01:02.2]} 39... Rc3 {[%clk
0:01:01.4]} 40. a4 {[%clk 0:01:01.9]} 40... Rc2+ {[%clk 0:00:58.5]} 41. Kf1
{[%clk 0:01:02.1]} 41... Kf6 {[%clk 0:00:57]} 42. Rb5 {[%clk 0:00:55.7]} 42...
Ra2 {[%clk 0:00:56.6]} 43. a5 {[%clk 0:00:56.5]} 43... Ke6 {[%clk 0:00:53.7]}
44. Kg1 {[%clk 0:00:49.8]} 44... f5 {[%clk 0:00:49.3]} 45. Kf1 {[%clk
0:00:49.9]} 45... e3 {[%clk 0:00:37.5]} 46. Ke1 {[%clk 0:00:40.4]} 46... Kd6
{[%clk 0:00:31.4]} 47. Kf1 {[%clk 0:00:25.8]} 47... Kc6 {[%clk 0:00:31.5]} 48.
Rb6+ {[%clk 0:00:26.5]} 48... Kd5 {[%clk 0:00:30.9]} 49. Rxg6 {[%clk 0:00:26.2]}
49... Ke4 {[%clk 0:00:32.3]} 50. Rf6 {[%clk 0:00:23.8]} 50... Rxa5 {[%clk
0:00:29.4]} 51. Ke2 {[%clk 0:00:24.5]} 51... Ra2+ {[%clk 0:00:30.5]} 52. Ke1
{[%clk 0:00:25.6]} 52... Rg2 {[%clk 0:00:30.8]} 53. Rg6 {[%clk 0:00:22.7]} 53...
Kf3 {[%clk 0:00:30.5]} 0-1

[Event "*** Titled Tuesday Blitz"]
[Site "Chess.com"]
[Date "2019.12.03"]
[Round "6"]
[White "BigAl"]
[Black "Orest_Vovk"]
[Result "1-0"]
[WhiteElo "2458"]
[BlackElo "2320"]
[TimeControl "180+2"]
[EndTime "14:23:59 PST"]
[Termination "BigAl won by resignation"]

1. e4 {[%clk 0:03:01.8]} 1... c5 {[%clk 0:02:57.5]} 2. Nc3 {[%clk 0:03:02.8]}
2... Nc6 {[%clk 0:02:58.3]} 3. g3 {[%clk 0:03:04.1]} 3... d6 {[%clk 0:02:58.2]}
4. Bg2 {[%clk 0:03:06]} 4... Nf6 {[%clk 0:02:58.7]} 5. d3 {[%clk 0:03:07.9]}
5... Bg4 {[%clk 0:02:59.6]} 6. f3 {[%clk 0:03:01.5]} 6... Bd7 {[%clk 0:02:59.6]}
7. Nge2 {[%clk 0:03:02.4]} 7... g6 {[%clk 0:03:00.9]} 8. Be3 {[%clk 0:03:03]}
8... Bg7 {[%clk 0:03:02.1]} 9. Qd2 {[%clk 0:03:03.7]} 9... O-O {[%clk
0:02:59.1]} 10. O-O {[%clk 0:03:05.6]} 10... Qc8 {[%clk 0:02:52.4]} 11. Bh6
{[%clk 0:03:05]} 11... Bh3 {[%clk 0:02:52.9]} 12. Bxg7 {[%clk 0:03:06]} 12...
Kxg7 {[%clk 0:02:53.3]} 13. f4 {[%clk 0:02:58.2]} 13... Bxg2 {[%clk 0:02:54.1]}
14. Kxg2 {[%clk 0:02:59.5]} 14... Nd4 {[%clk 0:02:54]} 15. f5 {[%clk 0:02:56.8]}
15... Nxe2 {[%clk 0:02:47.1]} 16. Nxe2 {[%clk 0:02:57.2]} 16... d5 {[%clk
0:02:46.6]} 17. e5 {[%clk 0:02:57.7]} 17... Ng4 {[%clk 0:02:41.8]} 18. e6 {[%clk
0:02:37.3]} 18... fxe6 {[%clk 0:02:38.2]} 19. fxg6 {[%clk 0:02:34.2]} 19... hxg6
{[%clk 0:02:20.6]} 20. Qg5 {[%clk 0:02:26.1]} 20... Nf6 {[%clk 0:02:16]} 21. Nf4
{[%clk 0:02:26.4]} 21... Nh7 {[%clk 0:02:05.2]} 22. Qxe7+ {[%clk 0:01:54.2]}
22... Kh8 {[%clk 0:01:38.3]} 23. Nxg6+ {[%clk 0:01:50.3]} 23... Kg8 {[%clk
0:01:39.3]} 24. Nxf8 {[%clk 0:01:47.8]} 24... Nxf8 {[%clk 0:01:39.3]} 25. Qf7+
{[%clk 0:01:43.1]} 25... Kh8 {[%clk 0:01:39.9]} 26. Rf6 {[%clk 0:01:18]} 26...
Nh7 {[%clk 0:01:34.7]} 27. Rh6 {[%clk 0:01:02.2]} 27... Qg8 {[%clk 0:01:35.4]}
28. Qf6+ {[%clk 0:00:53.3]} 28... Qg7 {[%clk 0:01:33.9]} 29. Qxg7+ {[%clk
0:00:54.6]} 29... Kxg7 {[%clk 0:01:34.6]} 30. Rxe6 {[%clk 0:00:56.5]} 30... Kf7
{[%clk 0:01:28.2]} 31. Rae1 {[%clk 0:00:56.5]} 31... b6 {[%clk 0:01:28.2]} 32.
Re7+ {[%clk 0:00:55.8]} 32... Kg6 {[%clk 0:01:29.3]} 33. h4 {[%clk 0:00:53]}
33... Nf6 {[%clk 0:01:25.8]} 34. R7e6 {[%clk 0:00:53.4]} 34... Kf7 {[%clk
0:01:20.5]} 35. Rc6 {[%clk 0:00:48.7]} 35... Ng4 {[%clk 0:01:19.1]} 36. Rf1+
{[%clk 0:00:45.8]} 36... Ke7 {[%clk 0:01:19.9]} 37. Rf4 {[%clk 0:00:45.6]} 37...
Ne3+ {[%clk 0:01:20.5]} 38. Kf3 {[%clk 0:00:45.8]} 38... Nxc2 {[%clk 0:01:20.2]}
39. Rh6 {[%clk 0:00:43.7]} 39... Nd4+ {[%clk 0:01:07]} 40. Kg2 {[%clk 0:00:41]}
40... Ne2 {[%clk 0:00:53.7]} 41. Rg4 {[%clk 0:00:37.6]} 41... Kf7 {[%clk
0:00:48.8]} 42. h5 {[%clk 0:00:34.3]} 42... Nc1 {[%clk 0:00:37]} 43. Rgg6 {[%clk
0:00:32.8]} 43... Rf8 {[%clk 0:00:26.7]} 44. Rh7+ {[%clk 0:00:22.7]} 44... Ke8
{[%clk 0:00:27.8]} 45. Re6+ {[%clk 0:00:22.2]} 45... Kd8 {[%clk 0:00:28.5]} 46.
Rd6+ {[%clk 0:00:22.9]} 46... Kc8 {[%clk 0:00:23]} 47. Rxd5 {[%clk 0:00:24.8]}
47... Nxa2 {[%clk 0:00:14.6]} 48. Rxa7 {[%clk 0:00:25.3]} 48... Nb4 {[%clk
0:00:15.4]} 49. Rxc5+ {[%clk 0:00:23.9]} 49... Kb8 {[%clk 0:00:14.4]} 50. Rcc7
{[%clk 0:00:24]} 50... Rf6 {[%clk 0:00:09.1]} 51. Rf7 {[%clk 0:00:23.3]} 51...
Re6 {[%clk 0:00:07.8]} 52. Rae7 {[%clk 0:00:24.4]} 1-0

[Event "*** Titled Tuesday Blitz"]
[Site "Chess.com"]
[Date "2019.12.03"]
[Round "6"]
[White "RitvarsReimanis"]
[Black "WeAintSurePal"]
[Result "0-1"]
[WhiteElo "2547"]
[BlackElo "2384"]
[TimeControl "180+2"]
[EndTime "14:24:03 PST"]
[Termination "WeAintSurePal won by checkmate"]

1. d4 {[%clk 0:03:01.9]} 1... d5 {[%clk 0:02:59.1]} 2. c4 {[%clk 0:03:02.7]}
2... e6 {[%clk 0:02:59.6]} 3. Nf3 {[%clk 0:03:02.9]} 3... c6 {[%clk 0:02:59.3]}
4. cxd5 {[%clk 0:03:01.8]} 4... exd5 {[%clk 0:02:47.2]} 5. Qc2 {[%clk
0:03:02.2]} 5... Bd6 {[%clk 0:02:46.5]} 6. Nc3 {[%clk 0:03:02.8]} 6... Ne7
{[%clk 0:02:47.5]} 7. Bg5 {[%clk 0:03:03.7]} 7... h6 {[%clk 0:02:44.8]} 8. Bh4
{[%clk 0:03:04.5]} 8... a5 {[%clk 0:02:41.4]} 9. e3 {[%clk 0:03:04.4]} 9... Na6
{[%clk 0:02:41.5]} 10. a3 {[%clk 0:03:04.6]} 10... Nc7 {[%clk 0:02:41.8]} 11.
Bd3 {[%clk 0:03:04.8]} 11... Ne6 {[%clk 0:02:40.3]} 12. Bg3 {[%clk 0:03:00.6]}
12... Ng5 {[%clk 0:02:39.6]} 13. Nd2 {[%clk 0:02:47.4]} 13... Bxg3 {[%clk
0:02:22.6]} 14. hxg3 {[%clk 0:02:48.1]} 14... g6 {[%clk 0:02:15.5]} 15. Qb3
{[%clk 0:02:23.8]} 15... Nf5 {[%clk 0:02:11.3]} 16. Bxf5 {[%clk 0:02:07.3]}
16... gxf5 {[%clk 0:02:11.8]} 17. Ne2 {[%clk 0:01:39.5]} 17... Ne4 {[%clk
0:02:11.6]} 18. Nf4 {[%clk 0:01:39]} 18... a4 {[%clk 0:02:03]} 19. Qb4 {[%clk
0:01:39.3]} 19... Ra6 {[%clk 0:01:55.5]} 20. Nd3 {[%clk 0:01:21.6]} 20... h5
{[%clk 0:01:48.5]} 21. Nf3 {[%clk 0:01:15.5]} 21... Be6 {[%clk 0:01:08.5]} 22.
O-O {[%clk 0:01:14.1]} 22... Ra7 {[%clk 0:00:48.5]} 23. Rac1 {[%clk 0:00:38.6]}
23... Nf6 {[%clk 0:00:47.2]} 24. Nh4 {[%clk 0:00:27.3]} 24... Ng4 {[%clk
0:00:47.3]} 25. Rfe1 {[%clk 0:00:26.7]} 25... Rg8 {[%clk 0:00:39.8]} 26. Nf4
{[%clk 0:00:26.7]} 26... Qc7 {[%clk 0:00:28.4]} 27. Qc5 {[%clk 0:00:24.5]} 27...
Ra5 {[%clk 0:00:26.9]} 28. Qb4 {[%clk 0:00:24.1]} 28... Ra6 {[%clk 0:00:25.9]}
29. Nxh5 {[%clk 0:00:25.1]} 29... Rb6 {[%clk 0:00:21.6]} 30. Qa5 {[%clk
0:00:22.6]} 30... Qd8 {[%clk 0:00:21.1]} 31. Re2 {[%clk 0:00:17.8]} 31... Rh8
{[%clk 0:00:15.8]} 32. Nf4 {[%clk 0:00:15.5]} 32... Nf6 {[%clk 0:00:16.6]} 33.
Qxa4 {[%clk 0:00:13.8]} 33... Ne4 {[%clk 0:00:16.6]} 34. Nd3 {[%clk 0:00:13.9]}
34... Ra6 {[%clk 0:00:17.4]} 35. Qb4 {[%clk 0:00:14]} 35... Ra8 {[%clk
0:00:18.2]} 36. Nc5 {[%clk 0:00:15.2]} 36... b5 {[%clk 0:00:17.6]} 37. Nxe4
{[%clk 0:00:15.2]} 37... fxe4 {[%clk 0:00:19.2]} 38. Rxc6 {[%clk 0:00:16.7]}
38... Rg8 {[%clk 0:00:19.5]} 39. Rc5 {[%clk 0:00:16]} 39... Bh3 {[%clk
0:00:19.6]} 40. Qxb5+ {[%clk 0:00:15.4]} 40... Bd7 {[%clk 0:00:20.9]} 41. Qb3
{[%clk 0:00:16.3]} 41... Be6 {[%clk 0:00:21.7]} 42. Qb5+ {[%clk 0:00:17.4]}
42... Kf8 {[%clk 0:00:22.5]} 43. Qb4 {[%clk 0:00:18.6]} 43... Kg7 {[%clk
0:00:22.9]} 44. Rb5 {[%clk 0:00:19.6]} 44... Kh8 {[%clk 0:00:23.8]} 45. Kh2
{[%clk 0:00:20.1]} 45... Rc8 {[%clk 0:00:24.7]} 46. Rc5 {[%clk 0:00:20.9]} 46...
Rb8 {[%clk 0:00:25.1]} 47. Qc3 {[%clk 0:00:22.3]} 47... Qf6 {[%clk 0:00:24.5]}
48. b4 {[%clk 0:00:20.7]} 48... Rg4 {[%clk 0:00:25]} 49. Rc6 {[%clk 0:00:20]}
49... Rbg8 {[%clk 0:00:25.6]} 50. Kg1 {[%clk 0:00:18.8]} 50... Qxh4 {[%clk
0:00:24.7]} 51. Rxe6 {[%clk 0:00:09.4]} 51... Qh5 {[%clk 0:00:25.5]} 52. Re5
{[%clk 0:00:09.5]} 52... R4g5 {[%clk 0:00:26]} 53. Rxg5 {[%clk 0:00:10.4]} 53...
Rxg5 {[%clk 0:00:26.6]} 54. Qc5 {[%clk 0:00:12.3]} 54... Qxe2 {[%clk 0:00:27.1]}
55. g4 {[%clk 0:00:11.3]} 55... Qxg4 {[%clk 0:00:27.4]} 56. b5 {[%clk 0:00:10]}
56... Qxg2# {[%clk 0:00:27.9]} 0-1

[Event "*** Titled Tuesday Blitz"]
[Site "Chess.com"]
[Date "2019.12.03"]
[Round "6"]
[White "marcodobrikov"]
[Black "Winehouse83"]
[Result "0-1"]
[WhiteElo "2348"]
[BlackElo "2531"]
[TimeControl "180+2"]
[EndTime "14:24:15 PST"]
[Termination "Winehouse83 won by resignation"]

1. e4 {[%clk 0:03:01.9]} 1... e5 {[%clk 0:03:01]} 2. Nf3 {[%clk 0:03:02.8]} 2...
Nc6 {[%clk 0:03:02.2]} 3. Bc4 {[%clk 0:03:03.7]} 3... Bc5 {[%clk 0:03:02.9]} 4.
b4 {[%clk 0:03:04.6]} 4... Bxb4 {[%clk 0:03:03.6]} 5. c3 {[%clk 0:03:05.3]} 5...
Be7 {[%clk 0:03:04.5]} 6. d4 {[%clk 0:03:05.7]} 6... Na5 {[%clk 0:03:02.7]} 7.
Nxe5 {[%clk 0:02:52.8]} 7... Nxc4 {[%clk 0:03:02.5]} 8. Nxc4 {[%clk 0:02:53.1]}
8... d5 {[%clk 0:03:03.6]} 9. exd5 {[%clk 0:02:53.5]} 9... Qxd5 {[%clk
0:03:05.5]} 10. Ne3 {[%clk 0:02:54.3]} 10... Qa5 {[%clk 0:03:05.1]} 11. O-O
{[%clk 0:02:54.2]} 11... Nf6 {[%clk 0:03:05.7]} 12. c4 {[%clk 0:02:52.5]} 12...
O-O {[%clk 0:03:04.7]} 13. Bd2 {[%clk 0:02:52.8]} 13... Qa6 {[%clk 0:02:59]} 14.
Nc3 {[%clk 0:02:53]} 14... c6 {[%clk 0:02:54]} 15. Qb3 {[%clk 0:02:53.2]} 15...
Ng4 {[%clk 0:02:49.7]} 16. Nxg4 {[%clk 0:02:51]} 16... Bxg4 {[%clk 0:02:51.6]}
17. Be3 {[%clk 0:02:52.3]} 17... Bf6 {[%clk 0:02:51.2]} 18. Rab1 {[%clk
0:02:52.2]} 18... b6 {[%clk 0:02:52.4]} 19. h3 {[%clk 0:02:51.2]} 19... Be6
{[%clk 0:02:52.5]} 20. d5 {[%clk 0:02:51.6]} 20... Bd7 {[%clk 0:02:41.9]} 21.
Ne4 {[%clk 0:02:49.6]} 21... Be5 {[%clk 0:02:39.4]} 22. f4 {[%clk 0:02:50.5]}
22... cxd5 {[%clk 0:02:35.1]} 23. cxd5 {[%clk 0:02:42.9]} 23... Bc7 {[%clk
0:02:27.3]} 24. Bd4 {[%clk 0:02:42.5]} 24... Bf5 {[%clk 0:02:24.1]} 25. Qg3
{[%clk 0:02:35.1]} 25... Bg6 {[%clk 0:02:06.7]} 26. d6 {[%clk 0:02:33.3]} 26...
Qc4 {[%clk 0:01:56.4]} 27. Rbd1 {[%clk 0:02:33.6]} 27... f5 {[%clk 0:01:43.8]}
28. dxc7 {[%clk 0:02:29.5]} 28... fxe4 {[%clk 0:01:44.1]} 29. f5 {[%clk
0:02:31.4]} 29... Rac8 {[%clk 0:01:27.7]} 30. fxg6 {[%clk 0:02:31.3]} 30...
Rxf1+ {[%clk 0:01:28.7]} 31. Rxf1 {[%clk 0:02:31]} 31... Qxd4+ {[%clk
0:01:29.7]} 32. Kh2 {[%clk 0:02:30.9]} 32... hxg6 {[%clk 0:01:28.7]} 33. h4
{[%clk 0:02:09.3]} 33... Qc4 {[%clk 0:01:16.1]} 34. Rf4 {[%clk 0:01:58.1]} 34...
Rxc7 {[%clk 0:01:10.9]} 35. Qxg6 {[%clk 0:01:55.9]} 35... Re7 {[%clk 0:01:11.4]}
36. h5 {[%clk 0:01:50.4]} 36... Qe6 {[%clk 0:00:49.4]} 37. Qg5 {[%clk
0:01:26.8]} 37... e3 {[%clk 0:00:44.7]} 38. Rf1 {[%clk 0:00:52.3]} 38... e2
{[%clk 0:00:45.5]} 39. Re1 {[%clk 0:00:52.5]} 39... Qd6+ {[%clk 0:00:46.1]} 40.
g3 {[%clk 0:00:52.4]} 40... Re5 {[%clk 0:00:41.7]} 41. Qg4 {[%clk 0:00:50.2]}
41... Qd5 {[%clk 0:00:30.9]} 42. Rxe2 {[%clk 0:00:45.1]} 42... Rxh5+ {[%clk
0:00:30.7]} 43. Kg1 {[%clk 0:00:42.5]} 43... Rh1+ {[%clk 0:00:29.8]} 44. Kf2
{[%clk 0:00:43]} 44... Rh2+ {[%clk 0:00:30.8]} 45. Ke1 {[%clk 0:00:42.8]} 45...
Rxe2+ {[%clk 0:00:14.2]} 46. Qxe2 {[%clk 0:00:43.2]} 46... Kf7 {[%clk
0:00:15.3]} 47. Kf2 {[%clk 0:00:40.6]} 47... a5 {[%clk 0:00:14]} 48. Qb2 {[%clk
0:00:39.1]} 48... Qc5+ {[%clk 0:00:14.3]} 49. Kg2 {[%clk 0:00:39]} 49... b5
{[%clk 0:00:15.5]} 50. Qb3+ {[%clk 0:00:35.3]} 50... Qc4 {[%clk 0:00:16.9]} 51.
Qf3+ {[%clk 0:00:34.5]} 51... Ke6 {[%clk 0:00:17.9]} 52. Qe3+ {[%clk 0:00:33.7]}
52... Kd6 {[%clk 0:00:16.5]} 53. Qb6+ {[%clk 0:00:34.2]} 53... Qc6+ {[%clk
0:00:17.7]} 0-1

[Event "*** Titled Tuesday Blitz"]
[Site "Chess.com"]
[Date "2019.12.03"]
[Round "6"]
[White "rezacz"]
[Black "AbasovN"]
[Result "1-0"]
[WhiteElo "2501"]
[BlackElo "2780"]
[TimeControl "180+2"]
[EndTime "14:24:19 PST"]
[Termination "rezacz won on time"]

1. c4 {[%clk 0:03:01.9]} 1... c5 {[%clk 0:03:00.9]} 2. Nf3 {[%clk 0:03:01.9]}
2... Nc6 {[%clk 0:03:02.8]} 3. d4 {[%clk 0:02:59.8]} 3... cxd4 {[%clk
0:03:03.7]} 4. Nxd4 {[%clk 0:03:01.7]} 4... Nf6 {[%clk 0:03:05.3]} 5. Nc3 {[%clk
0:03:02.6]} 5... e6 {[%clk 0:03:06.9]} 6. Nc2 {[%clk 0:03:00]} 6... d5 {[%clk
0:03:02.3]} 7. e3 {[%clk 0:02:39.4]} 7... Bd6 {[%clk 0:02:58.1]} 8. Be2 {[%clk
0:02:37.5]} 8... O-O {[%clk 0:02:57.5]} 9. cxd5 {[%clk 0:02:21.1]} 9... exd5
{[%clk 0:02:59.4]} 10. Nxd5 {[%clk 0:02:17.5]} 10... Nxd5 {[%clk 0:03:01.3]} 11.
Qxd5 {[%clk 0:02:18.7]} 11... Be6 {[%clk 0:03:03.2]} 12. Qe4 {[%clk 0:02:02.7]}
12... Re8 {[%clk 0:02:59.9]} 13. O-O {[%clk 0:01:50.6]} 13... Bd5 {[%clk
0:03:00.7]} 14. Qg4 {[%clk 0:01:42]} 14... Re6 {[%clk 0:02:55.3]} 15. Ne1 {[%clk
0:00:55.2]} 15... Rg6 {[%clk 0:02:39.9]} 16. Qa4 {[%clk 0:00:50.8]} 16... Ne5
{[%clk 0:02:32.5]} 17. f4 {[%clk 0:00:45]} 17... Ng4 {[%clk 0:01:51.3]} 18. h3
{[%clk 0:00:44.3]} 18... Nf6 {[%clk 0:01:48.7]} 19. Bf3 {[%clk 0:00:39.8]} 19...
Qe7 {[%clk 0:01:43.1]} 20. Bxd5 {[%clk 0:00:37.4]} 20... Nxd5 {[%clk 0:01:45]}
21. e4 {[%clk 0:00:35.3]} 21... Nb6 {[%clk 0:01:44]} 22. Qc2 {[%clk 0:00:33.5]}
22... Qh4 {[%clk 0:01:39.9]} 23. e5 {[%clk 0:00:25.3]} 23... Rc8 {[%clk
0:01:37.7]} 24. Qe2 {[%clk 0:00:21.7]} 24... Bc5+ {[%clk 0:01:32.4]} 25. Kh1
{[%clk 0:00:22.1]} 25... Nd5 {[%clk 0:01:33.7]} 26. f5 {[%clk 0:00:21.3]} 26...
Rg3 {[%clk 0:01:34.2]} 27. Nf3 {[%clk 0:00:21.2]} 27... Qh5 {[%clk 0:01:25.5]}
28. Qe4 {[%clk 0:00:21]} 28... Ne7 {[%clk 0:01:24.3]} 29. f6 {[%clk 0:00:21.1]}
29... Nf5 {[%clk 0:01:24.2]} 30. Bf4 {[%clk 0:00:21.3]} 30... Be3 {[%clk
0:01:05.9]} 31. Bxe3 {[%clk 0:00:19.2]} 31... Rxh3+ {[%clk 0:01:06.3]} 32. Kg1
{[%clk 0:00:19]} 32... Ng3 {[%clk 0:01:03.7]} 33. Qd3 {[%clk 0:00:16.9]} 33...
Rh1+ {[%clk 0:00:52.2]} 34. Kf2 {[%clk 0:00:17.5]} 34... Nxf1 {[%clk 0:00:54.1]}
35. Rxf1 {[%clk 0:00:18.9]} 35... Rxf1+ {[%clk 0:00:55.5]} 36. Kxf1 {[%clk
0:00:19.1]} 36... Qh1+ {[%clk 0:00:53]} 37. Kf2 {[%clk 0:00:20.4]} 37... Qa1
{[%clk 0:00:53.6]} 38. Qd7 {[%clk 0:00:14.2]} 38... Qxb2+ {[%clk 0:00:53.2]} 39.
Kg3 {[%clk 0:00:15]} 39... Ra8 {[%clk 0:00:29.1]} 40. Qg4 {[%clk 0:00:13]} 40...
g6 {[%clk 0:00:28.6]} 41. Qf4 {[%clk 0:00:13.1]} 41... Qa3 {[%clk 0:00:26.1]}
42. e6 {[%clk 0:00:07.3]} 42... fxe6 {[%clk 0:00:13.6]} 43. f7+ {[%clk
0:00:05.7]} 43... Kf8 {[%clk 0:00:15.2]} 44. Qf6 {[%clk 0:00:06.5]} 44... Qxe3
{[%clk 0:00:03.3]} 45. Qh8+ {[%clk 0:00:07.6]} 45... Kxf7 {[%clk 0:00:04.6]} 46.
Qxa8 {[%clk 0:00:09.5]} 46... Qb6 {[%clk 0:00:05.5]} 47. Qb8 {[%clk 0:00:08.7]}
47... Kg7 {[%clk 0:00:06.1]} 48. Qe5+ {[%clk 0:00:09.5]} 48... Kg8 {[%clk
0:00:07.2]} 49. Ng5 {[%clk 0:00:09.8]} 49... Qa6 {[%clk 0:00:07.5]} 50. Nxe6
{[%clk 0:00:08.2]} 50... Qd3+ {[%clk 0:00:07.8]} 51. Kh2 {[%clk 0:00:08.1]}
51... Qd7 {[%clk 0:00:08.5]} 52. Qf6 {[%clk 0:00:08.3]} 52... Qd6+ {[%clk
0:00:03.4]} 53. Kh3 {[%clk 0:00:08.5]} 53... Qa3+ {[%clk 0:00:02.9]} 54. g3
{[%clk 0:00:07.3]} 1-0

[Event "*** Titled Tuesday Blitz"]
[Site "Chess.com"]
[Date "2019.12.03"]
[Round "6"]
[White "GremioPrudente"]
[Black "BvsN"]
[Result "0-1"]
[WhiteElo "2234"]
[BlackElo "2373"]
[TimeControl "180+2"]
[EndTime "14:24:23 PST"]
[Termination "BvsN won on time"]

1. Nf3 {[%clk 0:03:01.9]} 1... d5 {[%clk 0:03:00.1]} 2. d4 {[%clk 0:03:01.5]}
2... Nf6 {[%clk 0:03:00.6]} 3. c4 {[%clk 0:03:02.5]} 3... c6 {[%clk 0:03:01.8]}
4. e3 {[%clk 0:03:02.8]} 4... Bf5 {[%clk 0:03:02.4]} 5. Bd3 {[%clk 0:03:03.4]}
5... Bxd3 {[%clk 0:03:02.8]} 6. Qxd3 {[%clk 0:03:04.9]} 6... e6 {[%clk
0:03:04.1]} 7. O-O {[%clk 0:03:05.7]} 7... Nbd7 {[%clk 0:03:05.3]} 8. Nc3 {[%clk
0:03:06.8]} 8... Bb4 {[%clk 0:03:06.4]} 9. Bd2 {[%clk 0:03:05]} 9... a5 {[%clk
0:03:07.4]} 10. a3 {[%clk 0:03:05.9]} 10... Be7 {[%clk 0:03:08.4]} 11. e4 {[%clk
0:03:06.5]} 11... Nc5 {[%clk 0:02:57.9]} 12. dxc5 {[%clk 0:02:55.9]} 12... dxe4
{[%clk 0:02:57.7]} 13. Qxd8+ {[%clk 0:02:38.3]} 13... Rxd8 {[%clk 0:02:57.6]}
14. Nxe4 {[%clk 0:02:20.2]} 14... Nxe4 {[%clk 0:02:58]} 15. Bxa5 {[%clk
0:02:21.3]} 15... Ra8 {[%clk 0:02:39.7]} 16. Bb4 {[%clk 0:02:12.8]} 16... Nxc5
{[%clk 0:02:31.8]} 17. Rad1 {[%clk 0:02:03.4]} 17... Ne4 {[%clk 0:02:24]} 18.
Bxe7 {[%clk 0:02:00.6]} 18... Kxe7 {[%clk 0:02:25.1]} 19. Rd4 {[%clk 0:01:52]}
19... Nf6 {[%clk 0:02:24.6]} 20. Rfd1 {[%clk 0:01:51.3]} 20... c5 {[%clk
0:02:05.7]} 21. R4d2 {[%clk 0:01:47.3]} 21... Rhd8 {[%clk 0:01:53.9]} 22. Rxd8
{[%clk 0:01:45.3]} 22... Rxd8 {[%clk 0:01:55]} 23. Rxd8 {[%clk 0:01:46.9]} 23...
Kxd8 {[%clk 0:01:56.3]} 24. Kf1 {[%clk 0:01:37.4]} 24... Ke7 {[%clk 0:01:53.1]}
25. Ke2 {[%clk 0:01:35.1]} 25... Kd6 {[%clk 0:01:53.3]} 26. h3 {[%clk
0:01:26.8]} 26... h6 {[%clk 0:01:52.5]} 27. Kd3 {[%clk 0:01:24]} 27... e5 {[%clk
0:01:51.7]} 28. Nd2 {[%clk 0:01:18.7]} 28... Nd7 {[%clk 0:01:45.7]} 29. Ne4+
{[%clk 0:01:10.7]} 29... Ke6 {[%clk 0:01:44.4]} 30. b4 {[%clk 0:01:10.1]} 30...
b6 {[%clk 0:01:39.7]} 31. bxc5 {[%clk 0:01:07.1]} 31... bxc5 {[%clk 0:01:39.9]}
32. a4 {[%clk 0:01:03.6]} 32... f5 {[%clk 0:01:40.9]} 33. Nc3 {[%clk 0:00:59.4]}
33... e4+ {[%clk 0:01:39.5]} 34. Ke2 {[%clk 0:00:49.4]} 34... Ne5 {[%clk
0:01:37.7]} 35. a5 {[%clk 0:00:48.3]} 35... Nxc4 {[%clk 0:01:38.1]} 36. a6
{[%clk 0:00:49.4]} 36... Nb6 {[%clk 0:01:29.4]} 37. Nb5 {[%clk 0:00:49.9]} 37...
Na8 {[%clk 0:01:20.8]} 38. f3 {[%clk 0:00:38.6]} 38... exf3+ {[%clk 0:01:19.3]}
39. Kxf3 {[%clk 0:00:38.4]} 39... g5 {[%clk 0:01:17.6]} 40. g3 {[%clk
0:00:38.3]} 40... Kd5 {[%clk 0:01:15.7]} 41. a7 {[%clk 0:00:28.3]} 41... c4
{[%clk 0:01:13.3]} 42. Ke3 {[%clk 0:00:25.9]} 42... Kc5 {[%clk 0:01:12.9]} 43.
Nc3 {[%clk 0:00:24.6]} 43... Nc7 {[%clk 0:00:51.9]} 44. h4 {[%clk 0:00:24.3]}
44... f4+ {[%clk 0:00:44.1]} 45. gxf4 {[%clk 0:00:20]} 45... gxh4 {[%clk
0:00:44.8]} 46. f5 {[%clk 0:00:21.2]} 46... Kb6 {[%clk 0:00:33.5]} 47. Nd5+
{[%clk 0:00:21]} 47... Nxd5+ {[%clk 0:00:33.3]} 48. Kd4 {[%clk 0:00:21.2]} 48...
Nc7 {[%clk 0:00:18.7]} 49. f6 {[%clk 0:00:21.7]} 49... Kxa7 {[%clk 0:00:17.8]}
50. f7 {[%clk 0:00:21.8]} 50... Ne6+ {[%clk 0:00:18.4]} 51. Ke5 {[%clk
0:00:22.9]} 51... Nf8 {[%clk 0:00:19.5]} 52. Kf6 {[%clk 0:00:24.4]} 52... c3
{[%clk 0:00:18]} 53. Ke7 {[%clk 0:00:25.3]} 53... Nh7 {[%clk 0:00:18.9]} 0-1